bitfinex/quotes_ETHUSD_20250106
["timestamp","ask_amount","ask_price","bid_price","bid_amount"]
[1736138179019,1.142277,3665.1,3664.8,0.09707145]
[1736138179196,1.142277,3665.1,3665.0,0.09700247]
[1736138179367,1.78331463,3665.1,3664.9,0.09703696]
[1736138179702,0.64103763,3665.1,3665.0,0.09700247]
[1736138180058,0.64103763,3665.1,3664.4,0.8266]
[1736138180393,0.64103763,3665.1,3664.5,0.09717493]
[1736138180600,0.68547968,3665.0,3664.5,0.09717493]
[1736138180828,0.792,3664.9,3664.5,0.09717493]
[1736138181413,3.30143183,3665.0,3664.5,0.09717493]
[1736138181574,1.142277,3665.1,3664.5,0.09717493]
[1736138181777,1.142277,3664.8,3664.5,0.09717493]
[1736138183090,1.142277,3665.1,3664.5,0.09717493]
[1736138185290,1.142277,3665.0,3664.5,0.09717493]
[1736138188376,1.142277,3665.1,3664.5,0.09717493]
[1736138189664,1.142277,3664.9,3664.5,0.09717493]
[1736138191814,1.142277,3664.9,3664.5,35.09717493]
[1736138193419,1.142277,3665.0,3664.5,35.09717493]
[1736138194123,2.45573,3664.9,3664.5,0.09717493]
[1736138194278,2.45582,3664.8,3664.5,0.09717493]
[1736138194489,3.598097,3664.8,3664.0,0.7709]
[1736138194807,3.598097,3664.8,3664.1,0.09735271]
[1736138194983,1.18086161,3664.7,3664.1,0.09735271]
[1736138195190,1.18086161,3664.2,3664.1,0.09735271]
[1736138195504,1.18086161,3664.2,3663.9,1.13657]
[1736138195881,1.18086161,3664.2,3663.8,0.7709]
[1736138196337,3.598307,3664.5,3663.8,0.7709]
[1736138196624,2.32313861,3664.5,3663.8,0.97953571]
[1736138197000,1.142277,3664.5,3663.8,0.97953571]
[1736138197204,2.48290362,3664.1,3663.8,0.97953571]
[1736138198926,1.142277,3664.1,3663.8,0.97953571]
[1736138199819,1.142277,3664.2,3663.8,0.7709]
[1736138200217,3.598467,3664.2,3663.5,0.9361871]
[1736138200629,2.45627,3664.1,3663.5,0.9361871]
[1736138200995,4.93891096,3664.1,3663.5,0.9361871]
[1736138201197,3.39714095,3663.9,3663.5,0.1788871]
[1736138201403,2.45659,3663.7,3663.5,0.1788871]
[1736138201599,0.7801,3663.9,3663.5,0.1788871]
[1736138202128,0.7801,3663.9,3663.6,0.08867885]
[1736138202629,1.7134155,3663.7,3663.6,0.08867885]
[1736138203701,1.7134155,3663.7,3663.6,0.86947885]
[1736138204027,1.1400628,3663.8,3663.6,0.86947885]
[1736138204906,1.1400628,3664.0,3663.6,0.86947885]
[1736138205633,1.1400628,3664.0,3663.6,0.7808]
[1736138205932,2.45647,3663.8,3663.5,0.1788871]
[1736138207396,3.5965328,3663.8,3663.5,0.1788871]
[1736138208529,2.45647,3663.8,3663.5,0.1788871]
[1736138209619,2.45647,3663.8,3663.5,35.1788871]
[1736138210006,2.45647,3663.8,3663.6,0.08920862]
[1736138212999,2.45647,3663.8,3663.5,0.1788871]
[1736138213199,2.782387,3663.8,3663.5,0.1788871]
[1736138214243,2.45647,3663.8,3663.6,0.08920862]
[1736138214400,3.25899,3664.1,3663.6,0.08920862]
[1736138214895,3.25899,3664.1,3663.7,0.8091]
[1736138214896,1.1400628,3664.1,3663.7,0.8091]
[1736138215209,1.1400628,3664.1,3663.5,0.1788871]
[1736138215210,1.1400628,3664.1,3663.8,0.89823959]
[1736138216055,2.284554,3664.5,3663.8,0.89823959]
[1736138216056,2.45601,3664.5,3663.8,0.89823959]
[1736138216369,2.45601,3664.5,3663.8,0.8091]
[1736138216945,2.45601,3664.5,3663.9,0.08873859]
[1736138217518,2.45586,3664.7,3663.9,0.08873859]
[1736138218619,5.07290095,3664.7,3663.9,0.08873859]
[1736138219571,3.5959228,3664.7,3663.9,0.08873859]
[1736138219950,3.5959228,3664.7,3663.9,0.42418145]
[1736138220460,1.1400628,3664.7,3663.9,0.42418145]
[1736138220629,1.1400628,3664.7,3664.0,0.7846]
[1736138220828,3.5957828,3664.9,3664.0,0.7846]
[1736138221065,3.5957828,3664.9,3664.1,0.08862984]
[1736138221730,2.4558,3664.8,3664.1,0.08862984]
[1736138221932,4.92934879,3664.8,3664.1,0.08862984]
[1736138222966,3.59257904,3664.8,3664.1,0.08862984]
[1736138224455,1.33722999,3664.7,3664.1,0.08862984]
[1736138225444,3.59257904,3664.8,3664.1,0.08862984]
[1736138226968,2.4558,3664.8,3664.1,0.08862984]
[1736138228392,1.33778636,3664.7,3664.1,0.08862984]
[1736138228682,1.33778636,3664.7,3664.2,0.8171]
[1736138229090,1.33778636,3664.7,3664.3,0.08825497]
[1736138229900,2.45573,3664.9,3664.3,0.08825497]
[1736138230097,2.45573,3664.9,3664.4,0.8171]
[1736138231083,2.45573,3664.9,3664.5,0.08818597]
[1736138231290,1.3381614,3664.8,3664.5,0.08818597]
[1736138232361,1.3381614,3664.8,3664.6,0.7581]
[1736138232555,1.1396153,3664.9,3664.6,0.84625148]
[1736138232760,1.1396153,3664.9,3664.6,1.17648663]
[1736138233813,1.1396153,3664.9,3664.7,0.8285]
[1736138234028,1.1396153,3665.3,3664.7,0.91644924]
[1736138234605,1.1396153,3665.3,3664.8,0.8285]
[1736138234925,1.1396153,3665.3,3664.9,0.37025344]
[1736138235055,1.1396153,3665.3,3665.0,0.8285]
[1736138235415,1.1396153,3665.6,3665.1,0.08717111]
[1736138235614,1.1396153,3665.6,3665.2,0.8286]
[1736138236317,1.1396153,3665.6,3665.3,0.08710656]
[1736138236621,1.1396153,3665.6,3665.4,0.8277]
[1736138237121,1.9622155,3665.7,3665.5,35.0]
[1736138237122,0.2488,3665.7,3665.5,35.0]
[1736138237329,0.2488,3665.7,3665.5,35.08687877]
[1736138238519,0.2488,3665.7,3665.5,0.08687877]
[1736138239019,0.2488,3665.7,3665.6,0.7532]
[1736138239260,0.2488,3665.7,3665.6,1.71055135]
[1736138240619,0.2488,3665.7,3665.6,4.71580135]
[1736138242236,0.2488,3665.7,3665.6,3.84529429]
[1736138244072,0.2488,3665.7,3665.6,6.46233524]
[1736138245077,0.2488,3665.7,3665.6,9.46233524]
[1736138245548,1e-05,3665.7,3665.6,9.46233524]
[1736138247237,1e-05,3665.7,3665.6,9.71233524]
[1736138247443,1e-05,3665.7,3665.6,11.09502405]
[1736138249726,1e-05,3665.7,3665.6,11.21302405]
[1736138251170,1e-05,3665.7,3665.6,20.08302405]
[1736138251890,1e-05,3665.7,3665.6,0.84004429]
[1736138253386,1e-05,3665.7,3665.6,1.39004429]
[1736138254667,1e-05,3665.7,3665.6,7.00708524]
[1736138255037,1e-05,3665.7,3665.6,4.39004429]
[1736138256526,1e-05,3665.7,3665.6,0.84004429]
[1736138256764,0.79401,3665.7,3665.6,0.08684429]
[1736138256927,0.79401,3665.7,3665.0,5.45565]
[1736138257126,0.79401,3665.7,3665.0,6.4337409]
[1736138257330,0.79401,3665.7,3665.1,0.0714994]
[1736138264141,1e-05,3665.7,3665.3,2.45545]
[1736138264585,1e-05,3665.7,3665.4,0.07139595]
[1736138267469,1e-05,3665.7,3665.4,2.83446055]
[1736138268768,0.8152,3665.6,3665.4,0.07139595]
[1736138268943,0.8152,3665.6,3664.8,2.45575]
[1736138269142,0.8152,3665.6,3665.0,0.55]
[1736138269343,0.8152,3665.6,3665.1,0.06958977]
[1736138269544,0.8152,3665.6,3665.1,2.52516977]
[1736138269766,0.8152,3665.6,3665.2,0.30751698]
[1736138269968,0.8152,3665.6,3665.3,0.0695208]
[1736138272985,1e-05,3665.7,3665.3,0.0695208]
[1736138273411,1e-05,3665.7,3665.5,2.45532]
[1736138273927,1e-05,3665.7,3665.6,0.06993668]
[1736138274074,1e-05,3665.7,3665.6,0.32246235]
[1736138274909,1e-05,3665.7,3665.6,2.52518668]
[1736138275897,1e-05,3665.7,3665.6,3.28058668]
[1736138277830,1e-05,3665.7,3665.6,2.52518668]
[1736138278129,1e-05,3665.7,3665.6,0.06993668]
[1736138278486,1e-05,3665.7,3665.1,2.45557]
[1736138278819,1e-05,3665.7,3665.2,0.322437]
[1736138279021,1e-05,3665.7,3665.2,0.39011015]
[1736138279513,1e-05,3665.7,3665.2,2.84562015]
[1736138281834,1e-05,3665.7,3665.4,2.45538]
[1736138282339,1e-05,3665.7,3665.5,0.06759608]
[1736138283831,1e-05,3665.7,3665.5,0.40713739]
[1736138284754,1e-05,3665.7,3665.5,2.86245739]
[1736138287331,1e-05,3665.7,3665.5,0.40713739]
[1736138287550,1e-05,3665.7,3665.5,0.06759608]
[1736138287945,1e-05,3665.7,3665.2,0.322437]
[1736138288124,1e-05,3665.7,3665.6,0.06757918]
[1736138288323,1e-05,3665.7,3665.0,3.59219]
[1736138288543,0.82381,3665.7,3665.6,0.06757478]
[1736138288863,0.82381,3665.7,3665.0,2.45562]
[1736138289040,0.82381,3665.7,3665.6,0.06760995]
[1736138289238,0.82381,3665.7,3665.1,2.956495]
[1736138289629,0.82381,3665.7,3665.2,0.06774787]
[1736138290031,0.82381,3665.7,3665.3,3.00545]
[1736138290360,1e-05,3665.7,3665.5,2.45529]
[1736138290526,1e-05,3665.7,3665.6,0.300529]
[1736138290859,1e-05,3665.7,3665.6,0.36832796]
[1736138291054,1e-05,3665.7,3665.6,0.06779896]
[1736138291496,0.80661,3665.7,3665.6,0.06779896]
[1736138291623,0.80661,3665.7,3664.8,2.45576]
[1736138292046,0.80661,3665.7,3664.9,0.06571308]
[1736138292355,0.8066,3665.6,3664.9,0.06571308]
[1736138292566,0.8066,3665.6,3665.0,0.66580431]
[1736138292928,0.8066,3665.6,3665.1,0.06574507]
[1736138294370,2.61704095,3665.6,3665.1,0.06574507]
[1736138294656,2.61704095,3665.6,3664.5,0.55]
[1736138294657,0.771,3665.5,3664.5,0.55]
[1736138294850,0.771,3665.5,3665.2,0.06579839]
[1736138295037,0.8273,3665.4,3664.5,0.55]
[1736138295561,0.8273,3665.4,3664.6,0.06600533]
[1736138295970,2.61704095,3665.3,3664.6,0.06600533]
[1736138296289,0.7577,3665.2,3664.3,3.87386057]
[1736138296436,0.7577,3665.2,3664.7,0.06613769]
[1736138296774,0.7577,3665.2,3664.3,3.87386057]
[1736138296928,0.7577,3665.2,3664.4,0.55572783]
[1736138297368,0.7577,3665.2,3664.5,0.06620668]
[1736138298939,0.7577,3665.2,3664.6,35.0]
[1736138299274,0.7577,3665.2,3664.7,0.06613769]
[1736138299830,0.8175,3664.9,3664.2,36.13657]
[1736138300043,0.8175,3664.9,3664.8,0.06610319]
[1736138300255,0.8175,3664.9,3664.2,36.13657]
[1736138300938,0.8175,3664.9,3664.3,0.06635473]
[1736138301143,2.48050004,3664.8,3664.3,0.06635473]
[1736138301338,0.8048,3664.7,3664.3,0.06635473]
[1736138303198,0.8048,3664.7,3663.8,2.45644]
[1736138303401,0.8048,3664.7,3663.9,35.06728321]
[1736138304957,0.8048,3664.7,3663.9,37.52365321]
[1736138305360,0.8048,3664.7,3664.2,0.55]
[1736138305683,1.1396153,3665.0,3664.5,0.7809]
[1736138305868,1.1396153,3665.0,3664.6,0.13980452]
[1736138306073,1.1396153,3665.2,3664.7,35.0]
[1736138306474,1.1396153,3665.2,3664.8,0.06687168]
[1736138306898,1.1396153,3665.2,3664.7,2.45586]
[1736138307073,3.61419187,3665.7,3665.3,2.45544]
[1736138307276,1e-05,3665.7,3665.4,0.323234]
[1736138307570,1e-05,3665.7,3665.4,0.38963967]
[1736138309598,1e-05,3665.7,3665.6,2.45525]
[1736138309799,1e-05,3665.7,3665.6,3.07158671]
[1736138310096,1e-05,3665.7,3665.6,0.61633671]
[1736138310704,1e-05,3665.7,3665.6,35.61633671]
[1736138311420,1e-05,3665.7,3665.6,0.06633671]
[1736138311630,1e-05,3665.7,3665.3,2.45542]
[1736138311770,1e-05,3665.7,3665.6,0.06633671]
[1736138311971,1e-05,3665.7,3665.4,0.323232]
[1736138312190,1e-05,3665.7,3665.5,0.06637119]
[1736138314474,1e-05,3665.7,3665.1,35.55]
[1736138314673,1e-05,3665.7,3665.6,0.06559463]
[1736138314875,1e-05,3665.7,3665.1,35.55]
[1736138315103,1e-05,3665.7,3665.6,0.06559463]
[1736138315316,1e-05,3665.7,3665.1,35.55]
[1736138315478,1e-05,3665.7,3665.6,0.06559463]
[1736138315674,1e-05,3665.7,3665.2,2.45552]
[1736138315892,0.80051,3665.7,3665.6,0.06559463]
[1736138316093,0.80051,3665.7,3665.2,2.45552]
[1736138316317,0.80051,3665.7,3665.6,0.06559463]
[1736138316504,0.80051,3665.7,3665.3,0.300552]
[1736138316710,0.80051,3665.7,3665.6,0.06559463]
[1736138316880,0.80051,3665.7,3665.3,0.300552]
[1736138317076,0.80051,3665.7,3665.6,0.06559463]
[1736138317281,0.80051,3665.7,3665.1,35.0]
[1736138317480,0.80051,3665.7,3665.6,0.06559463]
[1736138317714,0.80051,3665.7,3665.1,35.0]
[1736138317883,0.80051,3665.7,3665.6,0.06559463]
[1736138318080,0.80051,3665.7,3665.1,35.0]
[1736138318281,0.805,3665.6,3665.0,2.45563]
[1736138318481,0.805,3665.6,3665.1,0.29997515]
[1736138318708,0.805,3665.6,3665.2,35.0]
[1736138319916,0.805,3665.6,3665.1,2.75556515]
[1736138320286,0.805,3665.6,3665.2,35.0]
[1736138323879,0.805,3665.6,3665.3,0.06569807]
[1736138324520,0.805,3665.6,3665.4,35.0]
[1736138324718,0.805,3665.6,3665.4,35.06566358]
[1736138325216,0.805,3665.6,3665.4,36.34348659]
[1736138327623,0.805,3665.6,3665.4,1.34348659]
[1736138327825,0.805,3665.6,3665.4,0.06566358]
[1736138328125,0.805,3665.6,3665.5,35.0]
[1736138328321,0.805,3665.6,3665.5,35.0656291]
[1736138333917,0.805,3665.6,3665.5,0.0656291]
[1736138334236,0.805,3665.6,3665.1,2.45557]
[1736138334462,0.805,3665.6,3665.2,35.06573255]
[1736138336807,0.326007,3665.6,3665.2,35.06573255]
[1736138337004,0.7776,3665.5,3665.2,0.06573255]
[1736138337209,0.7776,3665.5,3664.6,1.1420034]
[1736138337511,0.7776,3665.5,3664.7,35.06595767]
[1736138341282,0.7776,3665.5,3664.7,0.06595767]
[1736138341579,0.61758479,3665.4,3664.7,0.06595767]
[1736138341745,0.61758479,3665.4,3664.8,35.0]
[1736138341946,0.61758479,3665.4,3664.8,35.06619098]
[1736138342659,0.7799,3665.3,3664.8,35.06619098]
[1736138344870,0.7799,3665.3,3664.8,0.06619098]
[1736138345057,1.21395327,3665.3,3664.8,0.06619098]
[1736138345379,1.21395327,3665.3,3664.5,37.45599]
[1736138345878,1.21395327,3665.3,3664.6,0.06625997]
[1736138346243,0.7799,3665.3,3664.6,0.06625997]
[1736138347649,0.7837,3665.2,3664.6,0.06625997]
[1736138350384,0.90650801,3665.1,3664.6,0.06625997]
[1736138350784,0.90650801,3665.1,3664.6,2.52216997]
[1736138352699,0.7837,3665.2,3664.7,35.0]
[1736138353156,0.7837,3665.2,3664.8,0.06636661]
[1736138353557,0.7837,3665.2,3664.7,35.0]
[1736138353885,0.7837,3665.2,3664.8,0.06636661]
[1736138354249,0.7837,3665.2,3664.7,35.0]
[1736138354454,0.7837,3665.2,3664.8,0.06636661]
[1736138354661,0.7837,3665.2,3664.7,35.0]
[1736138354866,0.7837,3665.2,3664.9,0.06633212]
[1736138355079,0.97614062,3665.2,3664.8,0.06636661]
[1736138355279,0.97614062,3665.2,3665.0,0.06629763]
[1736138355488,0.97614062,3665.2,3664.9,0.06633212]
[1736138355678,0.97614062,3665.2,3665.1,0.06626314]
[1736138355880,0.97614062,3665.2,3664.3,35.0]
[1736138356052,0.7824,3665.1,3664.3,35.0]
[1736138356258,0.7824,3665.1,3664.4,0.06660998]
[1736138356989,0.7824,3665.1,3664.3,2.45611]
[1736138357182,0.7824,3665.1,3664.5,0.06657549]
[1736138357379,0.7824,3665.1,3664.4,0.06660998]
[1736138357593,0.7824,3665.1,3664.6,0.06654099]
[1736138357771,0.7824,3665.1,3664.5,0.06657549]
[1736138358096,0.7824,3665.1,3664.6,0.06654099]
[1736138358498,0.7824,3665.1,3664.4,2.45605]
[1736138358685,0.7824,3665.1,3664.7,0.06650649]
[1736138358882,0.7824,3665.1,3664.4,2.45605]
[1736138359088,0.7824,3665.1,3664.8,0.066472]
[1736138359396,0.7824,3665.1,3664.4,2.45605]
[1736138359697,0.7824,3665.1,3664.2,2.45619]
[1736138359871,0.7824,3665.1,3664.5,0.06657549]
[1736138360201,0.7824,3665.1,3664.2,2.45619]
[1736138360364,1.22025662,3665.1,3664.6,0.06654099]
[1736138360564,1.22025662,3665.1,3664.2,2.45619]
[1736138360785,0.7824,3665.1,3664.7,0.06650649]
[1736138360995,0.90678545,3665.0,3664.2,2.45619]
[1736138361200,0.90678545,3665.0,3664.8,0.066472]
[1736138361402,0.90678545,3665.0,3664.2,2.45619]
[1736138361697,0.90678545,3665.0,3664.3,0.06664449]
[1736138362090,0.7824,3665.1,3664.3,0.06664449]
[1736138362589,1.17250207,3665.1,3664.3,0.06664449]
[1736138363001,2.35304856,3665.1,3664.3,0.06664449]
[1736138364205,0.90654483,3665.0,3664.3,0.06664449]
[1736138366769,1.96294649,3665.1,3664.3,0.06664449]
[1736138367204,0.7824,3665.1,3664.3,0.06664449]
[1736138369926,0.77911659,3665.1,3664.3,0.06664449]
[1736138372479,1.95966308,3665.1,3664.3,0.06664449]
[1736138372718,2.68635193,3665.1,3664.3,0.06664449]
[1736138373302,1.95966308,3665.1,3664.3,0.06664449]
[1736138374180,0.77911659,3665.1,3664.3,0.06664449]
[1736138376517,0.90679842,3665.0,3664.3,0.06664449]
[1736138380322,2.04750458,3665.0,3664.3,0.06664449]
[1736138381809,3.40837277,3665.0,3664.3,0.86664449]
[1736138382830,4.58997251,3665.0,3664.3,0.79139939]
[1736138383045,1.14070616,3664.9,3664.4,0.06458174]
[1736138384152,3.40837277,3664.9,3664.4,0.06458174]
[1736138385613,1.14070616,3664.8,3664.4,0.06458174]
[1736138386334,0.794,3664.7,3664.4,0.06458174]
[1736138387717,1.95940616,3664.9,3664.4,0.06458174]
[1736138388043,2.56266732,3664.9,3664.4,0.06458174]
[1736138388750,1.14070616,3664.8,3664.4,0.06458174]
[1736138390150,3.41003041,3664.8,3664.4,0.06458174]
[1736138391933,2.0484758,3664.7,3664.4,0.06458174]
[1736138396333,0.90776964,3664.6,3664.4,0.06458174]
[1736138398743,2.0484758,3664.6,3664.4,0.06458174]
[1736138399768,2.82083553,3664.6,3664.4,0.06458174]
[1736138399933,1.18054649,3664.5,3664.4,0.06458174]
[1736138400132,2.08831613,3664.5,3664.4,0.06458174]
[1736138401467,5.16092998,3664.5,3664.4,0.06458174]
[1736138401875,5.16092998,3664.5,3664.3,0.79139939]
[1736138402167,5.16092998,3664.5,3664.4,0.06474865]
[1736138402477,5.16092998,3664.5,3664.3,0.79139939]
[1736138402647,5.16092998,3664.5,3664.4,0.06474865]
[1736138402970,4.22277074,3664.5,3664.3,0.79139939]
[1736138403683,6.67881074,3664.5,3664.3,0.79139939]
[1736138403884,1.1443642,3664.4,3664.3,0.79139939]
[1736138404453,5.12474769,3664.4,3664.3,0.79139939]
[1736138404756,8.33440769,3664.4,3664.3,0.79139939]
[1736138405599,5.87834769,3664.4,3664.3,0.79139939]
[1736138407470,7.05889418,3664.4,3664.3,0.79139939]
[1736138408178,5.34783494,3664.4,3664.3,0.79139939]
[1736138410581,6.49136574,3664.4,3664.3,0.79139939]
[1736138412376,8.94742574,3664.4,3664.3,0.79139939]
[1736138413244,7.80389494,3664.4,3664.3,0.79139939]
[1736138415080,9.61623918,3664.4,3664.3,0.79139939]
[1736138416311,11.90033642,3664.4,3664.3,0.79139939]
[1736138416975,13.44263687,3664.4,3664.3,0.79139939]
[1736138418207,13.44263687,3664.4,3664.3,0.21278223]
[1736138419159,14.01030504,3664.4,3664.3,0.21278223]
[1736138423105,8.79744665,3664.4,3664.3,0.21278223]
[1736138423397,11.15853963,3664.4,3664.3,0.21278223]
[1736138424999,13.43934818,3664.4,3664.3,0.21278223]
[1736138426805,12.25880169,3664.4,3664.3,0.21278223]
[1736138429510,13.43934818,3664.4,3664.3,0.21278223]
[1736138436840,11.17002393,3664.4,3664.3,0.21278223]
[1736138437004,7.07687114,3664.4,3664.3,0.21278223]
[1736138439161,7.19587114,3664.4,3664.3,0.21278223]
[1736138441360,13.54838502,3664.4,3664.3,0.21278223]
[1736138442721,11.26722397,3664.4,3664.3,0.21278223]
[1736138444253,14.11867529,3664.4,3664.3,0.21278223]
[1736138446956,11.26722397,3664.4,3664.3,0.21278223]
[1736138451551,11.14822397,3664.4,3664.3,0.21278223]
[1736138451860,11.26722397,3664.4,3664.3,0.21278223]
[1736138453972,13.53293512,3664.4,3664.3,0.21278223]
[1736138455289,11.26722397,3664.4,3664.3,0.21278223]
[1736138457786,16.95548006,3664.4,3664.3,0.21278223]
[1736138459291,16.95548006,3664.4,3664.3,2.23e-06]
[1736138459292,17.50548006,3664.4,3664.3,2.23e-06]
[1736138459595,20.50548006,3664.4,3664.3,2.23e-06]
[1736138460459,17.08373848,3664.4,3664.3,2.23e-06]
[1736138461684,21.07577032,3664.4,3664.3,2.23e-06]
[1736138462292,3.0,3664.3,3663.5,0.9698871]
[1736138462446,3.63714649,3663.6,3663.5,0.9698871]
[1736138463643,3.63714649,3663.6,3663.5,1.06104743]
[1736138464792,7.70849932,3663.6,3663.5,1.06104743]
[1736138466204,4.07135283,3663.6,3663.5,1.06104743]
[1736138467030,4.07135283,3663.6,3663.5,36.06104743]
[1736138467441,4.07135283,3663.6,3663.5,1.06104743]
[1736138467442,2.04810212,3663.6,3663.5,1.06104743]
[1736138468436,3.97689825,3663.6,3663.5,1.06104743]
[1736138469737,6.36229297,3663.6,3663.5,1.06104743]
[1736138471122,1.14329593,3663.6,3663.5,1.06104743]
[1736138472221,3.40515861,3663.6,3663.5,1.06104743]
[1736138473796,2.26186268,3663.6,3663.5,1.06104743]
[1736138476406,2.26186268,3663.6,3663.5,0.9698871]
[1736138477106,2.26186268,3663.6,3663.5,1.06039803]
[1736138480401,3.97680657,3663.6,3663.5,1.06039803]
[1736138481475,2.0486701,3663.6,3663.5,1.06039803]
[1736138482689,2.0486701,3663.7,3663.5,1.06039803]
[1736138482915,2.0486701,3663.7,3663.6,0.8033]
[1736138483099,2.0486701,3663.7,3663.6,3.2599]
[1736138483304,2.0486701,3663.7,3663.6,3.35017364]
[1736138483823,2.0486701,3663.7,3663.6,3.82113436]
[1736138484305,2.0486701,3663.7,3663.6,1.36453436]
[1736138484712,2.0486701,3664.1,3663.7,0.7902]
[1736138485073,2.0486701,3664.1,3663.8,0.09018986]
[1736138485300,2.0486701,3664.1,3663.9,0.8204]
[1736138485618,2.0486701,3664.1,3664.0,0.09011927]
[1736138485816,3.40578771,3664.1,3664.0,0.09011927]
[1736138486174,3.40578771,3664.1,3664.0,2.01735671]
[1736138486531,3.40578771,3664.1,3664.0,0.91051927]
[1736138486679,3.40578771,3664.1,3664.0,38.36684927]
[1736138486875,2.26186268,3664.1,3664.0,38.36684927]
[1736138487529,1.35711761,3664.1,3664.0,38.36684927]
[1736138488325,1.14392503,3664.6,3664.1,0.8204]
[1736138488474,1.14392503,3664.6,3664.2,0.8204]
[1736138488673,1.14392503,3664.6,3664.2,0.9100972]
[1736138489275,2.2867141,3664.9,3664.2,0.9100972]
[1736138489276,3.38979881,3664.7,3664.2,0.9100972]
[1736138489504,3.38979881,3664.7,3664.4,2.45604]
[1736138489723,3.38979881,3664.7,3664.5,0.8204]
[1736138489913,3.38979881,3664.7,3664.6,1.26609865]
[1736138490307,3.38979881,3664.7,3664.6,1.35559321]
[1736138490677,3.38979881,3664.7,3664.6,0.90989456]
[1736138490991,1.18054649,3665.1,3664.6,0.90989456]
[1736138492045,1.18054649,3664.9,3664.6,0.90989456]
[1736138493046,1.18054649,3664.7,3664.6,0.90989456]
[1736138493948,1.18054649,3664.7,3664.6,0.08949456]
[1736138494247,1.18054649,3664.7,3664.2,0.8134]
[1736138494649,1.18054649,3664.7,3664.3,0.0887306]
[1736138496333,1.18054649,3664.5,3664.3,0.0887306]
[1736138496645,1.18054649,3664.5,3663.9,0.8134]
[1736138496942,1.18054649,3664.5,3664.4,0.08869532]
[1736138497172,1.18054649,3664.5,3663.9,0.8134]
[1736138497305,1.18054649,3664.5,3664.4,0.08869532]
[1736138497510,1.18054649,3664.5,3663.9,0.8134]
[1736138497731,1.18054649,3664.5,3664.4,0.08869532]
[1736138498212,3.25747,3664.7,3663.9,0.8134]
[1736138498438,1.18054649,3664.6,3664.4,0.08869532]
[1736138498633,1.18054649,3664.6,3663.9,0.8134]
[1736138498819,1.18054649,3664.6,3664.5,0.08866003]
[1736138499122,1.18054649,3664.6,3663.9,0.8134]
[1736138499652,1.18054649,3664.6,3664.0,35.08883648]
[1736138500841,1.18054649,3664.4,3664.0,0.08883648]
[1736138501034,1.18054649,3664.2,3664.0,0.08883648]
[1736138501515,0.00054649,3664.2,3664.0,0.08883648]
[1736138506068,1.18054649,3664.4,3664.0,0.08883648]
[1736138514985,1.18054649,3664.6,3664.0,0.08883648]
[1736138516486,0.8968581,3664.5,3664.0,0.08883648]
[1736138517708,1.18054649,3664.6,3664.0,0.08883648]
[1736138518295,1.17726174,3664.6,3664.0,0.08883648]
[1736138520793,0.89706096,3664.5,3664.0,0.08883648]
[1736138523504,0.89706096,3664.5,3664.1,0.7772]
[1736138523798,0.89706096,3664.5,3664.2,0.08914797]
[1736138524396,0.89706096,3664.5,3664.1,0.7772]
[1736138525601,1.18054649,3664.4,3664.1,0.7772]
[1736138526081,2.52708183,3664.4,3664.1,0.7772]
[1736138527700,0.89706096,3664.3,3664.1,0.7772]
[1736138528706,1.14392503,3664.4,3664.1,0.7772]
[1736138529136,1.14392503,3664.4,3664.2,0.08911724]
[1736138529502,1.14392503,3664.4,3664.1,0.7772]
[1736138529917,1.14392503,3664.4,3664.2,0.08911724]
[1736138531143,1.34803703,3664.3,3664.2,0.08911724]
[1736138533211,2.30054937,3664.3,3663.6,1.42046527]
[1736138533408,1.18054649,3664.1,3663.6,1.42046527]
[1736138533790,1.18054649,3664.1,3663.7,0.08929371]
[1736138535222,1.18054649,3664.1,3663.5,1.0003871]
[1736138535605,1.18054649,3664.1,3663.6,0.08939929]
[1736138536133,2.32447152,3664.3,3663.6,1.03652901]
[1736138537052,2.24686837,3664.2,3663.6,0.08939929]
[1736138538306,1.34812102,3664.1,3663.7,0.94758952]
[1736138538532,1.34812102,3664.1,3663.7,1.03696229]
[1736138538849,1.34812102,3664.1,3663.8,35.0]
[1736138539050,1.34812102,3664.1,3663.8,35.08933748]
[1736138539455,2.04267238,3664.1,3663.8,35.08933748]
[1736138540970,0.89874735,3664.0,3663.8,35.08933748]
[1736138542358,2.04267238,3664.0,3663.8,35.08933748]
[1736138543542,0.89874735,3663.9,3663.8,35.08933748]
[1736138544590,0.89874735,3663.9,3663.8,35.89213748]
[1736138544884,0.89874735,3664.0,3663.8,36.84042088]
[1736138546267,0.89874735,3664.1,3663.9,2.37060595]
[1736138546476,0.89874735,3664.1,3663.9,2.45993888]
[1736138547381,1.14392503,3664.2,3663.9,2.45993888]
[1736138548980,2.04387583,3664.3,3664.0,2.37060595]
[1736138549355,2.04387583,3664.3,3664.1,0.08926234]
[1736138550590,0.8999508,3664.2,3664.1,0.08926234]
[1736138550898,0.8999508,3664.2,3663.9,1.42232255]
[1736138551178,0.8999508,3664.2,3664.1,0.08926234]
[1736138551385,0.8999508,3664.2,3664.0,0.08929764]
[1736138551547,0.8999508,3664.2,3664.1,0.08926234]
[1736138551957,0.8999508,3664.2,3663.8,35.8028]
[1736138552174,0.8999508,3664.2,3664.1,0.08926234]
[1736138552335,0.8999508,3664.2,3663.8,35.8028]
[1736138552535,0.8999508,3664.2,3664.1,0.08926234]
[1736138553051,0.8999508,3664.2,3663.9,0.94808399]
[1736138553379,0.8999508,3664.2,3664.1,0.08926234]
[1736138553578,0.8999508,3664.2,3664.0,0.08929764]
[1736138554171,0.8999508,3664.2,3664.0,1.03738163]
[1736138555540,0.8999508,3664.2,3664.0,0.08929764]
[1736138557179,0.8999508,3664.2,3663.8,35.8028]
[1736138557638,0.8999508,3664.2,3663.9,0.08927143]
[1736138560802,0.8999508,3664.2,3664.0,0.759]
[1736138561303,0.8999508,3664.2,3664.1,0.08920084]
[1736138561485,2.04387583,3664.3,3664.1,0.08920084]
[1736138561858,2.04387583,3664.3,3664.2,35.0]
[1736138562060,2.04387583,3664.3,3664.2,35.08916555]
[1736138562844,2.04387583,3664.3,3664.2,38.30435555]
[1736138563475,3.39402031,3664.4,3664.2,38.30435555]
[1736138564467,2.04387583,3664.5,3664.2,38.30435555]
[1736138565861,0.8999508,3664.5,3664.2,38.30435555]
[1736138567663,2.04387583,3664.8,3664.3,0.94744553]
[1736138568008,2.04387583,3664.8,3664.3,1.03637815]
[1736138568906,2.04387583,3664.8,3664.3,0.08893262]
[1736138569579,1.14392503,3664.8,3664.3,0.08893262]
[1736138569779,1.14392503,3664.8,3664.4,35.0]
[1736138570160,1.14392503,3664.8,3664.5,0.08861172]